Workbook

Sheet Numération D ceinture
B1: 1. Range en ordre croissant. Ecris sous chaque nombre son n° d'ordre. … / 8 | R1: Taille des nombres | T1: Fiche | U1: 676 | W1: EFFECTUER LE REGLAGE SUIVANT DANS LES OPTIONS EXCEL.
B2: =RANDBETWEEN($S$2,$S$3)+RAND() -> 14.741 | C2: - | D2: =RANDBETWEEN($S$2,$S$3)+RAND() -> 27.753 | E2: - | F2: =RANDBETWEEN($S$2,$S$3)+RAND() -> 27.06 | G2: - | H2: =RANDBETWEEN($S$2,$S$3)+RAND() -> 9.197 | I2: - | J2: =RANDBETWEEN($S$2,$S$3)+RAND() -> 18.873 | K2: - | L2: =RANDBETWEEN($S$2,$S$3)+RAND() -> 3.277 | M2: - | N2: =RANDBETWEEN($S$2,$S$3)+RAND() -> 27.113 | O2: - | P2: =RANDBETWEEN($S$2,$S$3)+RAND() -> 3.382 | Q2: 1 | R2: min | S2: 3 | U2: 3 | V2: chiffres après la virgule
B3: ………. | D3: ………. | F3: ………. | H3: ………. | J3: ………. | L3: ………. | N3: ………. | P3: ………. | R3: max | S3: 30
B5: 2. Range en ordre décroissant. Ecris sous chaque nombre son n° d'ordre. … / 8 | R5: Partie décimale en millièmes.
B6: =RANDBETWEEN($S$2,$S$3)+RAND() -> 21.161 | C6: - | D6: =RANDBETWEEN($S$2,$S$3)+RAND() -> 13.198 | E6: - | F6: =RANDBETWEEN($S$2,$S$3)+RAND() -> 17.006 | G6: - | H6: =RANDBETWEEN($S$2,$S$3)+RAND() -> 24.915 | I6: - | J6: =RANDBETWEEN($S$2,$S$3)+RAND() -> 10.15 | K6: - | L6: =RANDBETWEEN($S$2,$S$3)+RAND() -> 7.67 | M6: - | N6: =RANDBETWEEN($S$2,$S$3)+RAND() -> 7.278 | O6: - | P6: =RANDBETWEEN($S$2,$S$3)+RAND() -> 29.936
B7: ………. | D7: ………. | F7: ………. | H7: ………. | J7: ………. | L7: ………. | N7: ………. | P7: ……….
Q8: 2
B9: 3. Compare. … / 8
B10: =RANDBETWEEN($S$2,$S$3)+RAND() -> 14.343 | C10: … | D10: =RANDBETWEEN($S$2,$S$3)+RAND() -> 23.277 | F10: =RANDBETWEEN($S$2,$S$3)+RAND() -> 28.022 | G10: … | H10: =RANDBETWEEN($S$2,$S$3)+RAND() -> 21.631 | J10: =RANDBETWEEN($S$2,$S$3)+RAND() -> 28.611 | K10: … | L10: =RANDBETWEEN($S$2,$S$3)+RAND() -> 19.189 | N10: =RANDBETWEEN($S$2,$S$3)+RAND() -> 24.662 | O10: … | P10: =RANDBETWEEN($S$2,$S$3)+RAND() -> 25.352 | DB10: La droite sera graduée en millièmes.
T11: ← F9 du clavier pour renouveler les exercices.
B12: =RANDBETWEEN($S$2,$S$3)+RAND() -> 20.767 | C12: … | D12: =RANDBETWEEN($S$2,$S$3)+RAND() -> 11.689 | F12: =RANDBETWEEN($S$2,$S$3)+RAND() -> 14.657 | G12: … | H12: =RANDBETWEEN($S$2,$S$3)+RAND() -> 16.533 | J12: =RANDBETWEEN($S$2,$S$3)+RAND() -> 7.044 | K12: … | L12: =RANDBETWEEN($S$2,$S$3)+RAND() -> 10.097 | N12: =RANDBETWEEN($S$2,$S$3)+RAND() -> 21.217 | O12: … | P12: =RANDBETWEEN($S$2,$S$3)+RAND() -> 4.117 | R12: 5
B14: 4. Continue la série. … / 3
B15: =RANDBETWEEN($S$2,$S$3) -> 28 | C15: - | D15: =B15+S15 -> 28.3 | E15: - | F15: ………. | G15: - | H15: ………. | I15: - | J15: ………. | K15: - | L15: ………. | M15: - | N15: ………. | O15: - | P15: ………. | R15: pas | S15: 0.3
Q16: 3
B17: 5. Continue la série. … / 3
B18: =RANDBETWEEN($S$2,$S$3) -> 22 | C18: - | D18: =B18-S18 -> 21.5 | E18: - | F18: ………. | G18: - | H18: ………. | I18: - | J18: ………. | K18: - | L18: ………. | M18: - | N18: ………. | O18: - | P18: ………. | R18: pas | S18: 0.5 | W18: La partie décimale est volontairement limitée à 3 décimales.
W19: Dans ce type d'exercices, il n'est pas utile de tirer des grands nombres. Choisir max < 100.
B20: 6. Ecris en chiffres. … / 4 | W20: Les exercices 4 & 5 commencent par un nombre entier pour faciliter le calcul de la série.
B21: =CONCATENATE(NumText(S21,"","",$U$2,"virgule "), "→") -> trois virgule neuf cent cinquante-six → | S21: =RANDBETWEEN($S$2,$S$3)+RAND() -> 3.956 | W21: Pour ne faire varier que la partie décimale, choisir min = max.
B22: =CONCATENATE(NumText(S22,"","",$U$2,"virgule "), "→") -> vingt-sept virgule six cent quatorze → | S22: =RANDBETWEEN($S$2,$S$3)+RAND() -> 27.614 | W22: Choisir dans la liste déroulante, pour les exercices 7 & 8, une valeur en adéquation avec votre choix concernant la taille de la partie décimale.
B23: vingt-sept virgule six cent vingt-quatre → | S23: 27.624 | W23: On ne peut pas arrondir au centième si on a demandé des nombres en dixièmes… par exemple.
B24: dix-sept virgule zéro quatre-vingt-dix-huit → | S24: 17.098
B25: =CONCATENATE("7. Encadre ",U27," près. … / 8") -> 7. Encadre à l'unité près. … / 8
D26: ………. | E26: < | F26: =RANDBETWEEN($S$2,$S$3)+RAND() -> 12.387 | G26: < | H26: ………. | L26: ………. | M26: < | N26: =RANDBETWEEN($S$2,$S$3)+RAND() -> 13.422 | O26: < | P26: ………. | R26: 4 | U26: 1
U27: =VLOOKUP(U26,plages!$D$1:$E$3,2,FALSE) -> à l'unité
D28: ………. | E28: < | F28: =RANDBETWEEN($S$2,$S$3)+RAND() -> 5.035 | G28: < | H28: ………. | L28: ………. | M28: < | N28: =RANDBETWEEN($S$2,$S$3)+RAND() -> 23.051 | O28: < | P28: ……….
B30: =CONCATENATE("8. Arrondis ",U32,IF(U31=1," la plus proche. … / 8"," le plus proche. … / 8")) -> 8. Arrondis au dixième le plus proche. … / 8
B31: =RANDBETWEEN($S$2,$S$3)+RAND() -> 15.773 | C31: ® | D31: ………. | F31: =RANDBETWEEN($S$2,$S$3)+RAND() -> 27.097 | G31: ® | H31: ………. | J31: =RANDBETWEEN($S$2,$S$3)+RAND() -> 4.441 | K31: ® | L31: ………. | N31: =RANDBETWEEN($S$2,$S$3)+RAND() -> 22.557 | O31: ® | P31: ………. | U31: 0.1
U32: =VLOOKUP(U31,plages!$D$1:$E$3,2,FALSE) -> au dixième
B33: =RANDBETWEEN($S$2,$S$3)+RAND() -> 7.478 | C33: ® | D33: ………. | F33: =RANDBETWEEN($S$2,$S$3)+RAND() -> 28.318 | G33: ® | H33: ………. | J33: =RANDBETWEEN($S$2,$S$3)+RAND() -> 10.146 | K33: ® | L33: ………. | N33: =RANDBETWEEN($S$2,$S$3)+RAND() -> 26.783 | O33: ® | P33: ……….
B35: =B1 -> 1. Range en ordre croissant. Ecris sous chaque nombre son n° d'ordre. … / 8 | O35: CORRECTION
B36: 14.741 | C36: - | D36: 27.753 | E36: - | F36: 27.06 | G36: - | H36: 9.197 | I36: - | J36: 18.873 | K36: - | L36: 3.277 | M36: - | N36: 27.113 | O36: - | P36: 3.382
B37: =RANK(B36,$B$36:$P$36,1) -> 4 | D37: =RANK(D36,$B$36:$P$36,1) -> 8 | F37: =RANK(F36,$B$36:$P$36,1) -> 6 | H37: =RANK(H36,$B$36:$P$36,1) -> 3 | J37: =RANK(J36,$B$36:$P$36,1) -> 5 | L37: =RANK(L36,$B$36:$P$36,1) -> 1 | N37: =RANK(N36,$B$36:$P$36,1) -> 7 | P37: =RANK(P36,$B$36:$P$36,1) -> 2
B39: =B5 -> 2. Range en ordre décroissant. Ecris sous chaque nombre son n° d'ordre. … / 8
B40: 21.161 | C40: - | D40: 13.198 | E40: - | F40: 17.006 | G40: - | H40: 24.915 | I40: - | J40: 10.15 | K40: - | L40: 7.67 | M40: - | N40: 7.278 | O40: - | P40: 29.936
B41: =RANK(B40,$B$40:$P$40,0) -> 3 | D41: =RANK(D40,$B$40:$P$40,0) -> 5 | F41: =RANK(F40,$B$40:$P$40,0) -> 4 | H41: =RANK(H40,$B$40:$P$40,0) -> 2 | J41: =RANK(J40,$B$40:$P$40,0) -> 6 | L41: =RANK(L40,$B$40:$P$40,0) -> 7 | N41: =RANK(N40,$B$40:$P$40,0) -> 8 | P41: =RANK(P40,$B$40:$P$40,0) -> 1
B43: =B9 -> 3. Compare. … / 8
B44: =B10 -> 14.343 | C44: =IF(B44<D44,"<",">") -> < | D44: =D10 -> 23.277 | F44: =F10 -> 28.022 | G44: =IF(F44<H44,"<",">") -> > | H44: =H10 -> 21.631 | J44: =J10 -> 28.611 | K44: =IF(J44<L44,"<",">") -> > | L44: =L10 -> 19.189 | N44: =N10 -> 24.662 | O44: =IF(N44<P44,"<",">") -> < | P44: =P10 -> 25.352
B46: =B12 -> 20.767 | C46: =IF(B46<D46,"<",">") -> > | D46: 11.689 | F46: 14.657 | G46: =IF(F46<H46,"<",">") -> < | H46: 16.533 | J46: 7.044 | K46: =IF(J46<L46,"<",">") -> < | L46: 10.097 | N46: 21.217 | O46: =IF(N46<P46,"<",">") -> > | P46: 4.117
B48: =B14 -> 4. Continue la série. … / 3
B49: =B15 -> 28 | C49: =C15 -> - | D49: =D15 -> 28.3 | E49: =E15 -> - | F49: =D49+$S$15 -> 28.6 | G49: =G15 -> - | H49: =F49+$S$15 -> 28.9 | I49: =I15 -> - | J49: =H49+$S$15 -> 29.2 | K49: =K15 -> - | L49: =J49+$S$15 -> 29.5 | M49: =M15 -> - | N49: =L49+$S$15 -> 29.8 | O49: =O15 -> - | P49: =N49+$S$15 -> 30.1
B51: =B17 -> 5. Continue la série. … / 3
B52: =B18 -> 22 | C52: =C18 -> - | D52: =D18 -> 21.5 | E52: =E18 -> - | F52: =D52+$S$18 -> 22 | G52: =G18 -> - | H52: =F52-$S$18 -> 21.5 | I52: =I18 -> - | J52: =H52-$S$18 -> 21 | K52: =K18 -> - | L52: =J52-$S$18 -> 20.5 | M52: =M18 -> - | N52: =L52-$S$18 -> 20 | O52: =O18 -> - | P52: =N52-$S$18 -> 19.5
B54: =B20 -> 6. Ecris en chiffres. … / 4
B55: =CONCATENATE(B21," ",TEXT(S21,"###, ###")) -> trois virgule neuf cent cinquante-six → 3,956
B56: =CONCATENATE(B22," ",TEXT(S22,"###, ###")) -> vingt-sept virgule six cent quatorze → 27,614
B57: =CONCATENATE(B23," ",TEXT(S23,"###, ###")) -> vingt-sept virgule six cent vingt-quatre → 27,624
B58: =CONCATENATE(B24," ",TEXT(S24,"###, ###")) -> dix-sept virgule zéro quatre-vingt-dix-huit → 17,098
B59: =B25 -> 7. Encadre à l'unité près. … / 8
D60: =INT(F26/$U$26)*$U$26 -> 12 | E60: =E26 -> < | F60: =F26 -> 12.387 | G60: =G26 -> < | H60: =D60+$U$26 -> 13 | L60: =INT(N26/$U$26)*$U$26 -> 13 | M60: =M26 -> < | N60: =N26 -> 13.422 | O60: =O26 -> < | P60: =L60+$U$26 -> 14
D62: =INT(F28/$U$26)*$U$26 -> 5 | E62: =E28 -> < | F62: =F28 -> 5.035 | G62: =G28 -> < | H62: =D62+$U$26 -> 6 | L62: =INT(N28/$U$26)*$U$26 -> 23 | M62: =M28 -> < | N62: =N28 -> 23.051 | O62: =O28 -> < | P62: =L62+$U$26 -> 24
B64: =B30 -> 8. Arrondis au dixième le plus proche. … / 8
B65: =B31 -> 15.773 | C65: ® | D65: =ROUND(B65,-LOG($U$31)) -> 15.8 | F65: =F31 -> 27.097 | G65: ® | H65: =ROUND(F65,-LOG($U$31)) -> 27.1 | J65: =J31 -> 4.441 | K65: ® | L65: =ROUND(J65,-LOG($U$31)) -> 4.4 | N65: =N31 -> 22.557 | O65: ® | P65: =ROUND(N65,-LOG($U$31)) -> 22.6
B67: =B33 -> 7.478 | C67: ® | D67: =ROUND(B67,-LOG($U$31)) -> 7.5 | F67: =F33 -> 28.318 | G67: ® | H67: =ROUND(F67,-LOG($U$31)) -> 28.3 | J67: =J33 -> 10.146 | K67: ® | L67: =ROUND(J67,-LOG($U$31)) -> 10.1 | N67: =N33 -> 26.783 | O67: ® | P67: =ROUND(N67,-LOG($U$31)) -> 26.8

Sheet Numération N ceinture
B1: 1. Range en ordre croissant. Ecris sous chaque nombre son n° d'ordre. … / 8 | T1: Fiche | U1: 266
B2: =RANDBETWEEN($S$2,$S$3) -> 739767 | C2: - | D2: =RANDBETWEEN($S$2,$S$3) -> 605145 | E2: - | F2: =RANDBETWEEN($S$2,$S$3) -> 876734 | G2: - | H2: =RANDBETWEEN($S$2,$S$3) -> 639581 | I2: - | J2: =RANDBETWEEN($S$2,$S$3) -> 869900 | K2: - | L2: =RANDBETWEEN($S$2,$S$3) -> 548693 | M2: - | N2: =RANDBETWEEN($S$2,$S$3) -> 415216 | O2: - | P2: =RANDBETWEEN($S$2,$S$3) -> 602717 | R2: min | S2: 400000
B3: ………. | D3: ………. | F3: ………. | H3: ………. | J3: ………. | L3: ………. | N3: ………. | P3: ………. | R3: max | S3: 1000000
B5: 2. Range en ordre décroissant. Ecris sous chaque nombre son n° d'ordre. … / 8
B6: =RANDBETWEEN($S$2,$S$3) -> 756998 | C6: - | D6: =RANDBETWEEN($S$2,$S$3) -> 838808 | E6: - | F6: =RANDBETWEEN($S$2,$S$3) -> 935069 | G6: - | H6: =RANDBETWEEN($S$2,$S$3) -> 721445 | I6: - | J6: =RANDBETWEEN($S$2,$S$3) -> 420816 | K6: - | L6: =RANDBETWEEN($S$2,$S$3) -> 467000 | M6: - | N6: =RANDBETWEEN($S$2,$S$3) -> 546131 | O6: - | P6: =RANDBETWEEN($S$2,$S$3) -> 451426
B7: ………. | D7: ………. | F7: ………. | H7: ………. | J7: ………. | L7: ………. | N7: ………. | P7: ……….
B9: 3. Compare. … / 8
B10: =RANDBETWEEN($S$2,$S$3) -> 505932 | C10: … | D10: =RANDBETWEEN($S$2,$S$3) -> 837926 | F10: =RANDBETWEEN($S$2,$S$3) -> 690374 | G10: … | H10: =RANDBETWEEN($S$2,$S$3) -> 966356 | J10: =RANDBETWEEN($S$2,$S$3) -> 819742 | K10: … | L10: =RANDBETWEEN($S$2,$S$3) -> 725485 | N10: =RANDBETWEEN($S$2,$S$3) -> 978961 | O10: … | P10: =RANDBETWEEN($S$2,$S$3) -> 703625
B12: =RANDBETWEEN($S$2,$S$3) -> 810891 | C12: … | D12: =RANDBETWEEN($S$2,$S$3) -> 677639 | F12: =RANDBETWEEN($S$2,$S$3) -> 894973 | G12: … | H12: =RANDBETWEEN($S$2,$S$3) -> 956054 | J12: =RANDBETWEEN($S$2,$S$3) -> 687866 | K12: … | L12: =RANDBETWEEN($S$2,$S$3) -> 439968 | N12: =RANDBETWEEN($S$2,$S$3) -> 615699 | O12: … | P12: =RANDBETWEEN($S$2,$S$3) -> 775519
B14: 4. Continue la série. … / 3
B15: =RANDBETWEEN($S$2,$S$3) -> 574143 | C15: - | D15: =B15+S15 -> 575143 | E15: - | F15: ………. | G15: - | H15: ………. | I15: - | J15: ………. | K15: - | L15: ………. | M15: - | N15: ………. | O15: - | P15: ………. | R15: pas | S15: 1000
B17: 5. Continue la série. … / 3
B18: =RANDBETWEEN($S$2,$S$3) -> 445964 | C18: - | D18: =B18-S18 -> 435964 | E18: - | F18: ………. | G18: - | H18: ………. | I18: - | J18: ………. | K18: - | L18: ………. | M18: - | N18: ………. | O18: - | P18: ………. | R18: pas | S18: 10000
B20: 6. Ecris en chiffres. … / 4
B21: =CONCATENATE(NumText(S21), "→") -> neuf cent soixante-et-onze mille cinquante-trois → | S21: =RANDBETWEEN($S$2,$S$3) -> 971053
B22: =CONCATENATE(NumText(S22), "→") -> huit cent trois mille quatre cent seize → | S22: =RANDBETWEEN($S$2,$S$3) -> 803416
B23: =CONCATENATE(NumText(S23), "→") -> quatre cent vingt-trois mille neuf cent dix-huit → | S23: =RANDBETWEEN($S$2,$S$3) -> 423918
B24: =CONCATENATE(NumText(S24), "→") -> sept cent treize mille deux cent quatre-vingt-six → | S24: =RANDBETWEEN($S$2,$S$3) -> 713286
B25: =CONCATENATE("7. Encadre ",U27," près. … / 8") -> 7. Encadre à la dizaine près. … / 8
D26: ………. | E26: < | F26: =RANDBETWEEN($S$2,$S$3) -> 721207 | G26: < | H26: ………. | L26: ………. | M26: < | N26: =RANDBETWEEN($S$2,$S$3) -> 973646 | O26: < | P26: ………. | Q26: 7 | U26: 10
U27: =VLOOKUP(U26,plages!$A$1:$B$9,2,FALSE) -> à la dizaine
D28: ………. | E28: < | F28: =RANDBETWEEN($S$2,$S$3) -> 768353 | G28: < | H28: ………. | L28: ………. | M28: < | N28: =RANDBETWEEN($S$2,$S$3) -> 734863 | O28: < | P28: ……….
B30: =CONCATENATE("8. Arrondis ",U32," la plus proche. … / 8") -> 8. Arrondis à la centaine de mille la plus proche. … / 8
B31: =RANDBETWEEN($S$2,$S$3) -> 773334 | C31: ® | D31: ………. | F31: =RANDBETWEEN($S$2,$S$3) -> 472461 | G31: ® | H31: ………. | J31: =RANDBETWEEN($S$2,$S$3) -> 603670 | K31: ® | L31: ………. | N31: =RANDBETWEEN($S$2,$S$3) -> 680371 | O31: ® | P31: ………. | Q31: 8 | U31: 100000
U32: =VLOOKUP(U31,plages!$A$1:$B$9,2,FALSE) -> à la centaine de mille
B33: =RANDBETWEEN($S$2,$S$3) -> 446484 | C33: ® | D33: ………. | F33: =RANDBETWEEN($S$2,$S$3) -> 776317 | G33: ® | H33: ………. | J33: =RANDBETWEEN($S$2,$S$3) -> 687456 | K33: ® | L33: ………. | N33: =RANDBETWEEN($S$2,$S$3) -> 771971 | O33: ® | P33: ……….
B35: =B1 -> 1. Range en ordre croissant. Ecris sous chaque nombre son n° d'ordre. … / 8 | O35: CORRECTION
B36: 739767 | C36: - | D36: 605145 | E36: - | F36: 876734 | G36: - | H36: 639581 | I36: - | J36: 869900 | K36: - | L36: 548693 | M36: - | N36: 415216 | O36: - | P36: 602717
B37: =RANK(B36,$B$36:$P$36,1) -> 6 | D37: =RANK(D36,$B$36:$P$36,1) -> 4 | F37: =RANK(F36,$B$36:$P$36,1) -> 8 | H37: =RANK(H36,$B$36:$P$36,1) -> 5 | J37: =RANK(J36,$B$36:$P$36,1) -> 7 | L37: =RANK(L36,$B$36:$P$36,1) -> 2 | N37: =RANK(N36,$B$36:$P$36,1) -> 1 | P37: =RANK(P36,$B$36:$P$36,1) -> 3
B39: =B5 -> 2. Range en ordre décroissant. Ecris sous chaque nombre son n° d'ordre. … / 8
B40: 756998 | C40: - | D40: 838808 | E40: - | F40: 935069 | G40: - | H40: 721445 | I40: - | J40: 420816 | K40: - | L40: 467000 | M40: - | N40: 546131 | O40: - | P40: 451426
B41: =RANK(B40,$B$40:$P$40,0) -> 3 | D41: =RANK(D40,$B$40:$P$40,0) -> 2 | F41: =RANK(F40,$B$40:$P$40,0) -> 1 | H41: =RANK(H40,$B$40:$P$40,0) -> 4 | J41: =RANK(J40,$B$40:$P$40,0) -> 8 | L41: =RANK(L40,$B$40:$P$40,0) -> 6 | N41: =RANK(N40,$B$40:$P$40,0) -> 5 | P41: =RANK(P40,$B$40:$P$40,0) -> 7
B43: =B9 -> 3. Compare. … / 8
B44: =B10 -> 505932 | C44: =IF(B44<D44,"<",">") -> < | D44: =D10 -> 837926 | F44: =F10 -> 690374 | G44: =IF(F44<H44,"<",">") -> < | H44: =H10 -> 966356 | J44: =J10 -> 819742 | K44: =IF(J44<L44,"<",">") -> > | L44: =L10 -> 725485 | N44: =N10 -> 978961 | O44: =IF(N44<P44,"<",">") -> > | P44: =P10 -> 703625
B46: =B12 -> 810891 | C46: =IF(B46<D46,"<",">") -> > | D46: 677639 | F46: 894973 | G46: =IF(F46<H46,"<",">") -> < | H46: 956054 | J46: 687866 | K46: =IF(J46<L46,"<",">") -> > | L46: 439968 | N46: 615699 | O46: =IF(N46<P46,"<",">") -> < | P46: 775519
B48: =B14 -> 4. Continue la série. … / 3
B49: =B15 -> 574143 | C49: =C15 -> - | D49: =D15 -> 575143 | E49: =E15 -> - | F49: =D49+$S$15 -> 576143 | G49: =G15 -> - | H49: =F49+$S$15 -> 577143 | I49: =I15 -> - | J49: =H49+$S$15 -> 578143 | K49: =K15 -> - | L49: =J49+$S$15 -> 579143 | M49: =M15 -> - | N49: =L49+$S$15 -> 580143 | O49: =O15 -> - | P49: =N49+$S$15 -> 581143
B51: =B17 -> 5. Continue la série. … / 3
B52: =B18 -> 445964 | C52: =C18 -> - | D52: =D18 -> 435964 | E52: =E18 -> - | F52: =D52+$S$18 -> 445964 | G52: =G18 -> - | H52: =F52-$S$18 -> 435964 | I52: =I18 -> - | J52: =H52-$S$18 -> 425964 | K52: =K18 -> - | L52: =J52-$S$18 -> 415964 | M52: =M18 -> - | N52: =L52-$S$18 -> 405964 | O52: =O18 -> - | P52: =N52-$S$18 -> 395964
B54: =B20 -> 6. Ecris en chiffres. … / 4
B55: =CONCATENATE(B21,TEXT(S21,"### ##0")) -> neuf cent soixante-et-onze mille cinquante-trois →971 053
B56: =CONCATENATE(B22,TEXT(S22,"### ##0")) -> huit cent trois mille quatre cent seize →803 416
B57: =CONCATENATE(B23,TEXT(S23,"### ##0")) -> quatre cent vingt-trois mille neuf cent dix-huit →423 918
B58: =CONCATENATE(B24,TEXT(S24,"### ##0")) -> sept cent treize mille deux cent quatre-vingt-six →713 286
B59: =B25 -> 7. Encadre à la dizaine près. … / 8
D60: =INT(F26/$U$26)*$U$26 -> 721200 | E60: =E26 -> < | F60: =F26 -> 721207 | G60: =G26 -> < | H60: =D60+$U$26 -> 721210 | L60: =INT(N26/$U$26)*$U$26 -> 973640 | M60: =M26 -> < | N60: =N26 -> 973646 | O60: =O26 -> < | P60: =L60+$U$26 -> 973650
D62: =INT(F28/$U$26)*$U$26 -> 768350 | E62: =E28 -> < | F62: =F28 -> 768353 | G62: =G28 -> < | H62: =D62+$U$26 -> 768360 | L62: =INT(N28/$U$26)*$U$26 -> 734860 | M62: =M28 -> < | N62: =N28 -> 734863 | O62: =O28 -> < | P62: =L62+$U$26 -> 734870
B64: =B30 -> 8. Arrondis à la centaine de mille la plus proche. … / 8
B65: =B31 -> 773334 | C65: ® | D65: =ROUND(B65,-LOG($U$31)) -> 800000 | F65: =F31 -> 472461 | G65: ® | H65: =ROUND(F65,-LOG($U$31)) -> 500000 | J65: =J31 -> 603670 | K65: ® | L65: =ROUND(J65,-LOG($U$31)) -> 600000 | N65: =N31 -> 680371 | O65: ® | P65: =ROUND(N65,-LOG($U$31)) -> 700000
B67: =B33 -> 446484 | C67: ® | D67: =ROUND(B67,-LOG($U$31)) -> 400000 | F67: =F33 -> 776317 | G67: ® | H67: =ROUND(F67,-LOG($U$31)) -> 800000 | J67: =J33 -> 687456 | K67: ® | L67: =ROUND(J67,-LOG($U$31)) -> 700000 | N67: =N33 -> 771971 | O67: ® | P67: =ROUND(N67,-LOG($U$31)) -> 800000

Sheet plages (hidden)
A1: 1 | B1: à l'unité | D1: 1 | E1: à l'unité
A2: 10 | B2: à la dizaine | D2: 0.1 | E2: au dixième
A3: 100 | B3: à la centaine | D3: 0.01 | E3: au centième
A4: 1000 | B4: à l'unité de mille
A5: 10000 | B5: à la dizaine de mille
A6: 100000 | B6: à la centaine de mille
A7: 1000000 | B7: à l'unité de millions
A8: 10000000 | B8: à la dizaine de millions
A9: 100000000 | B9: à la centaine de millions
A16: ConvNumberLetter() | B16: 480000400 | C16: quatre cent quatre-vingts millions et quatre cents
A17: chiffrelettre() | B17: 480000400 | C17: =chiffrelettre(B17) -> quatre cent quatre-vingts millions quatre cents Euros
A18: NumText() | B18: 480000400 | C18: =NumText(B18) -> quatre cent quatre-vingts millions quatre cents
A19: ConvNumberLetter() | B19: 76.58 | C19: soixante-seize virgule cinquante-huit
A20: chiffrelettre() | B20: 76.58 | C20: =chiffrelettre(B20) -> soixante seize Euros cinquante huit centimes
A21: NumText() | B21: 76.58 | C21: =NumText(B21) -> soixante-seize
A22: ConvNumberLetter() | B22: 800.8 | C22: huit cents virgule quatre-vingts
A23: chiffrelettre() | B23: 800.8 | C23: =chiffrelettre(B23) -> huit cents Euros quatre-vingts centimes
A24: NumText() | B24: 800.8 | C24: =NumText(B24) -> huit cents
A25: ConvNumberLetter() | B25: 480000400 | C25: quatre cent quatre-vingts millions et quatre cents
A26: chiffrelettre() | B26: 480000400 | C26: =chiffrelettre(B26) -> quatre cent quatre-vingts millions quatre cents Euros
A27: NumText() | B27: 480000400 | C27: =NumText(B27) -> quatre cent quatre-vingts millions quatre cents
A28: ConvNumberLetter() | B28: 480000400 | C28: quatre cent quatre-vingts millions et quatre cents
A29: chiffrelettre() | B29: 480000400 | C29: =chiffrelettre(B29) -> quatre cent quatre-vingts millions quatre cents Euros
A30: NumText() | B30: 480000400 | C30: =NumText(B30) -> quatre cent quatre-vingts millions quatre cents
A31: ConvNumberLetter() | B31: 480000400 | C31: quatre cent quatre-vingts millions et quatre cents
